fUST/lending_fUST_20250814
["ID","MTS","AMOUNT","RATE_DAILY","PERIOD"]
[379106744,1755143445147,-460.0,0.000186,2]
[379106745,1755143445156,-460.0,0.000186,2]
[379106746,1755143445166,-460.0,0.000186,2]
[379106747,1755143445175,-764.04,0.000186,2]
[379106748,1755143445184,-486.06,0.000186,2]
[379106749,1755143445193,-460.0,0.000186,2]
[379106750,1755143445203,-1041.09,0.000186,2]
[379106751,1755143445213,-460.0,0.000186,2]
[379106752,1755143445222,-2811.4,0.000186,2]
[379106753,1755143445232,-740.94,0.000186,2]
[379106754,1755143445241,-460.0,0.000186,2]
[379106755,1755143445251,-460.0,0.000186,2]
[379106756,1755143445260,-664.33,0.00018601,2]
[379106757,1755143445269,-460.0,0.00018601,2]
[379106758,1755143445278,-460.0,0.00018601,2]
[379106759,1755143445288,-460.0,0.00018601,2]
[379106760,1755143445297,-1182.39,0.00018601,2]
[379106761,1755143445306,-2040.06,0.00018601,2]
[379106762,1755143445315,-1057.18,0.00018601,2]
[379106763,1755143445324,-460.0,0.00018601,2]
[379106764,1755143445333,-460.0,0.00018601,2]
[379106765,1755143445343,-460.0,0.00018601,2]
[379106766,1755143445353,-729.81,0.00018601,2]
[379106767,1755143445362,-636.69,0.00018601,2]
[379106768,1755143445371,-460.0,0.00018601,2]
[379106769,1755143445380,-5485.07,0.00018601,2]
[379106770,1755143445389,-5898.94,0.00018601,2]
[379106771,1755143445399,-872.14,0.00018601,2]
[379106772,1755143445408,-460.0,0.00018601,2]
[379106773,1755143445417,-460.0,0.00018601,2]
[379106774,1755143445426,-460.0,0.00018601,2]
[379106775,1755143445436,-460.0,0.00018601,2]
[379106776,1755143445445,-460.0,0.00018601,2]
[379106777,1755143445454,-460.0,0.00018601,2]
[379106778,1755143445463,-2425.83,0.00018601,2]
[379106779,1755143445472,-460.0,0.00018601,2]
[379106780,1755143445482,-460.0,0.00018601,2]
[379106781,1755143445491,-603.01,0.00018601,2]
[379106782,1755143445500,-1123.1,0.00018601,2]
[379106783,1755143445510,-622.76,0.00018601,2]
[379106784,1755143445519,-6026.21,0.00018601,2]
[379106785,1755143445528,-573.51,0.00018601,2]
[379106786,1755143445537,-460.0,0.00018601,2]
[379106787,1755143445547,-1053.56,0.00018601,2]
[379106788,1755143445556,-460.0,0.00018601,2]
[379106789,1755143445565,-1090.1,0.00018601,2]
[379106790,1755143445575,-480.78812035,0.00018601,2]
[379106791,1755143445584,-4415.5,0.00018601,2]
[379106792,1755143445594,-1695.43,0.00018601,2]
[379106793,1755143445602,-460.0,0.00018601,2]
[379106794,1755143445611,-460.0,0.00018601,2]
[379106795,1755143445621,-830.3,0.00018601,2]
[379106796,1755143445630,-460.0,0.00018601,2]
[379106797,1755143445639,-934.47,0.00018601,2]
[379106798,1755143445648,-738.48,0.00018601,2]
[379106799,1755143445658,-460.0,0.00018601,2]
[379106800,1755143445667,-460.0,0.00018601,2]
[379106801,1755143445676,-603.68,0.00018601,2]
[379106802,1755143445686,-460.0,0.00018601,2]
[379106803,1755143445695,-460.0,0.00018601,2]
[379106804,1755143445705,-1248.55,0.00018601,2]
[379106805,1755143445714,-1456.02,0.00018601,2]
[379106806,1755143445723,-460.0,0.00018601,2]
[379106807,1755143445732,-1665.69,0.00018601,2]
[379106808,1755143445741,-470.49,0.00018601,2]
[379106809,1755143445750,-460.0,0.00018601,2]
[379106810,1755143445759,-460.0,0.00018601,2]
[379106811,1755143445768,-898.12,0.00018601,2]
[379106812,1755143445776,-460.0,0.00018601,2]
[379106813,1755143445785,-460.0,0.00018601,2]
[379106814,1755143445794,-3106.71,0.00018601,2]
[379106815,1755143445803,-460.0,0.00018601,2]
[379106816,1755143445812,-460.0,0.00018601,2]
[379106817,1755143445821,-460.0,0.00018601,2]
[379106818,1755143445830,-460.0,0.00018601,2]
[379106819,1755143445839,-460.0,0.00018601,2]
[379106820,1755143445849,-460.0,0.00018601,2]
[379106821,1755143445859,-460.0,0.00018601,2]
[379106822,1755143445868,-460.0,0.00018601,2]
[379106823,1755143445877,-460.0,0.00018601,2]
[379106824,1755143445887,-460.0,0.00018602,2]
[379106825,1755143445896,-556.82947604,0.00018602,2]
[379106826,1755143445905,-460.0,0.00018602,2]
[379106827,1755143445915,-460.0,0.00018602,2]
[379106828,1755143445924,-460.0,0.00018602,2]
[379106829,1755143445935,-460.0,0.00018602,2]
[379106830,1755143445945,-476.04127908,0.00018602,2]
[379106831,1755143445954,-460.0,0.00018602,2]
[379106832,1755143445963,-460.0,0.00018602,2]
[379106833,1755143445973,-907.11,0.00018602,2]
[379106834,1755143445982,-1418.39,0.00018602,2]
[379106835,1755143445991,-467.376732,0.00018602,2]
[379106836,1755143446000,-460.0,0.00018602,2]
[379106837,1755143446009,-467.376732,0.00018602,2]
[379106838,1755143446018,-460.0,0.00018602,2]
[379106839,1755143446028,-1326.11,0.00018602,2]
[379106840,1755143446037,-1250.56,0.00018602,2]
[379106841,1755143446047,-460.0,0.00018602,2]
[379106842,1755143446056,-588.98,0.00018602,2]
[379106843,1755143446066,-569.9,0.00018602,2]
[379106844,1755143446075,-15305.96,0.00018602,2]
[379106845,1755143446085,-1488.18,0.00018602,2]
[379106846,1755143446094,-151.46703016,0.00018602,2]
[379106847,1755143446104,-460.0,0.00018602,2]
[379106848,1755143446116,-1554.78,0.00018602,2]
[379106849,1755143446127,-1631.73,0.00018602,2]
[379106850,1755143446137,-735.35,0.00018602,2]
[379106851,1755143446146,-1002.08,0.00018602,2]
[379106852,1755143446156,-460.0,0.00018602,2]
[379106854,1755143446166,-13092.26,0.00018602,2]
[379106855,1755143446176,-21748.34,0.00018602,2]
[379106856,1755143446186,-460.0,0.00018602,2]
[379106857,1755143446197,-578.52,0.00018602,2]
[379106858,1755143446206,-3848.37,0.00018602,2]
[379106859,1755143446216,-535.13,0.00018602,2]
[379106860,1755143446226,-1387.96,0.00018602,2]
[379106861,1755143446236,-460.0,0.00018602,2]
[379106862,1755143446245,-460.0,0.00018602,2]
[379106863,1755143446255,-460.0,0.00018602,2]
[379106864,1755143446264,-151.0,0.000187,2]
[379106865,1755143446274,-151.0,0.00018702,2]
[379106866,1755143446284,-460.0,0.00018702,2]
[379106867,1755143446294,-460.0,0.00018702,2]
[379106868,1755143446303,-179.60574432,0.00018702,2]
[379106869,1755143446313,-460.0,0.00018702,2]
[379106870,1755143446323,-463.15370191,0.00018702,2]
[379106871,1755143446332,-151.0,0.00018702,2]
[379106872,1755143446342,-460.0,0.00018702,2]
[379106873,1755143446351,-460.0,0.00018702,2]
[379106874,1755143446361,-151.0,0.00018702,2]
[379106875,1755143446371,-744.05,0.00018702,2]
[379106876,1755143446380,-460.0,0.00018702,2]
[379106877,1755143446389,-460.0,0.00018702,2]
[379106878,1755143446399,-460.0,0.00018702,2]
[379106879,1755143446409,-460.0,0.00018702,2]
[379106880,1755143446418,-460.0,0.00018702,2]
[379106881,1755143446428,-460.0,0.00018702,2]
[379106882,1755143446438,-151.0,0.00018702,2]
[379106883,1755143446448,-151.0,0.00018702,2]
[379106884,1755143446457,-460.0,0.00018702,2]
[379106885,1755143446467,-460.0,0.00018702,2]
[379106886,1755143446477,-460.0,0.00018702,2]
[379106887,1755143446486,-460.0,0.00018702,2]
[379106888,1755143446496,-460.0,0.00018702,2]
[379106889,1755143446505,-151.0,0.00018702,2]
[379106890,1755143446515,-460.0,0.00018702,2]
[379106891,1755143446525,-460.0,0.00018702,2]
[379106892,1755143446534,-460.0,0.00018702,2]
[379106893,1755143446544,-460.0,0.00018702,2]
[379106894,1755143446553,-460.0,0.00018702,2]
[379106895,1755143446563,-460.0,0.00018702,2]
[379106896,1755143446573,-460.0,0.00018702,2]
[379106897,1755143446583,-460.0,0.00018702,2]
[379106898,1755143446592,-460.0,0.00018702,2]
[379106899,1755143446601,-460.0,0.00018702,2]
[379106900,1755143446612,-879.55,0.00018702,2]
[379106901,1755143446622,-151.0,0.00018702,2]
[379106902,1755143446631,-151.0,0.00018702,2]
[379106903,1755143446641,-460.0,0.00018702,2]
[379106904,1755143446651,-460.0,0.00018702,2]
[379106905,1755143446661,-460.0,0.00018702,2]
[379106906,1755143446671,-460.0,0.00018702,2]
[379106907,1755143446680,-151.0,0.00018702,2]
[379106908,1755143446690,-460.0,0.00018702,2]
[379106909,1755143446700,-460.0,0.00018702,2]
[379106910,1755143446709,-151.0,0.00018702,2]
[379106911,1755143446719,-460.0,0.00018702,2]
[379106912,1755143446728,-460.0,0.00018702,2]
[379106913,1755143446737,-1563.48,0.00018702,2]
[379106914,1755143446747,-460.0,0.00018702,2]
[379106915,1755143446757,-460.0,0.00018702,2]
[379106916,1755143446767,-460.0,0.00018702,2]
[379106917,1755143446776,-460.0,0.00018702,2]
[379106918,1755143446786,-1564.86,0.00018702,2]
[379106919,1755143446795,-1025.75,0.00018702,2]
[379106920,1755143446805,-460.0,0.00018702,2]
[379106921,1755143446814,-460.0,0.00018702,2]
[379106922,1755143446824,-460.0,0.00018702,2]
[379106923,1755143446834,-460.0,0.00018702,2]
[379106924,1755143446843,-460.0,0.00018702,2]
[379106925,1755143446854,-480.39492027,0.00018702,2]
[379106926,1755143446863,-550.5,0.00018702,2]
[379106927,1755143446873,-460.0,0.00018702,2]
[379106928,1755143446883,-158.15447284,0.00018702,2]
[379106929,1755143446892,-461.06080029,0.00018702,2]
[379106930,1755143446902,-460.0,0.00018702,2]
[379106931,1755143446911,-471.10767372,0.00018702,2]
[379106932,1755143446921,-460.0,0.00018702,2]
[379106933,1755143446931,-461.94176406,0.00018702,2]
[379106934,1755143446940,-460.0,0.00018702,2]
[379106935,1755143446950,-460.0,0.00018702,2]
[379106936,1755143446960,-460.0,0.00018702,2]
[379106937,1755143446970,-601.06,0.00018702,2]
[379106938,1755143446980,-462.35472963,0.00018702,2]
[379106939,1755143446989,-588.68,0.00018702,2]
[379106940,1755143446999,-530.31,0.00018702,2]
[379106941,1755143447009,-460.0,0.00018702,2]
[379106942,1755143447019,-460.0,0.00018702,2]
[379106943,1755143447029,-297.81070416,0.00018702,2]
[379106944,1755143447038,-460.0,0.00018702,2]
[379106945,1755143447048,-460.0,0.00018702,2]
[379106946,1755143447057,-460.0,0.00018702,2]
[379106947,1755143447067,-460.0,0.00018702,2]
[379106948,1755143447077,-460.0,0.00018702,2]
[379106949,1755143447087,-779.11,0.00018702,2]
[379106950,1755143447097,-873.03,0.00018702,2]
[379106951,1755143447107,-460.0,0.00018702,2]
[379106952,1755143447119,-460.0,0.00018702,2]
[379106953,1755143447129,-460.0,0.00018702,2]
[379106954,1755143447139,-461.70036656,0.00018702,2]
[379106955,1755143447148,-831.74,0.00018702,2]
[379106956,1755143447159,-460.0,0.00018702,2]
[379106957,1755143447168,-1148.81,0.00018702,2]
[379106958,1755143447178,-461.27535362,0.00018702,2]
[379106959,1755143447188,-414.46618828,0.00018702,2]
[379106960,1755143447199,-460.0,0.00018702,2]
[379106961,1755143447209,-460.0,0.00018702,2]
[379106963,1755143447219,-460.0,0.00018702,2]
[379106965,1755143447229,-460.0,0.00018702,2]
[379106967,1755143447239,-460.0,0.00018702,2]
[379106968,1755143447248,-460.0,0.00018702,2]
[379106969,1755143447258,-835.31,0.00018702,2]
[379106970,1755143447268,-516.26,0.00018702,2]
[379106971,1755143447278,-460.0,0.00018702,2]
[379106972,1755143447288,-460.0,0.00018702,2]
[379106973,1755143447298,-460.0,0.00018702,2]
[379106974,1755143447308,-460.0,0.00018702,2]
[379106975,1755143447318,-460.0,0.00018702,2]
[379106976,1755143447327,-460.0,0.00018702,2]
[379106977,1755143447337,-460.0,0.00018702,2]
[379106978,1755143447347,-1896.23,0.00018702,2]
[379106979,1755143447357,-460.0,0.00018702,2]
[379106980,1755143447367,-327.1744739,0.00018702,2]
[379106981,1755143447376,-1337.76,0.00018702,2]
[379106983,1755143447386,-1678.65,0.00018702,2]
[379106985,1755143447396,-467.376732,0.00018702,2]
[379106987,1755143447405,-467.376732,0.00018702,2]
[379106988,1755143447415,-1179.19,0.00018702,2]
[379106989,1755143447425,-460.0,0.00018702,2]
[379106990,1755143447435,-462.37319109,0.00018702,2]
[379106991,1755143447446,-460.0,0.00018702,2]
[379106992,1755143447456,-782.3,0.00018702,2]
[379106993,1755143447465,-347.65585921,0.00018702,2]
[379106994,1755143447475,-2569.19,0.00018702,2]
[379106995,1755143447484,-460.0,0.00018702,2]
[379106996,1755143447494,-460.0,0.00018702,2]
[379106997,1755143447504,-1332.57,0.00018702,2]
[379106998,1755143447513,-1086.37,0.00018702,2]
[379106999,1755143447523,-460.0,0.00018702,2]
[379107000,1755143447533,-460.0,0.00018702,2]
[379107001,1755143447542,-460.0,0.00018702,2]
[379107002,1755143447552,-945.2,0.00018702,2]
[379107003,1755143447562,-460.0,0.00018702,2]
[379107004,1755143447572,-460.0,0.00018702,2]
[379107005,1755143447581,-460.0,0.00018702,2]
[379107006,1755143447591,-1030.29,0.00018702,2]
[379107007,1755143447600,-460.0,0.00018702,2]
[379107008,1755143447610,-735.88,0.00018702,2]
[379107009,1755143447619,-1525.06,0.00018702,2]
[379107010,1755143447629,-3491.82,0.00018702,2]
[379107011,1755143447639,-460.0,0.00018702,2]
[379107012,1755143447648,-1034.82,0.00018702,2]
[379107013,1755143447658,-460.0,0.00018702,2]
[379107014,1755143447667,-460.0,0.00018702,2]
[379107015,1755143447677,-740.44,0.00018702,2]
[379107016,1755143447688,-460.0,0.00018702,2]
[379107017,1755143447697,-1111.06,0.00018702,2]
[379107018,1755143447706,-460.0,0.00018702,2]
[379107019,1755143447716,-460.0,0.00018702,2]
[379107020,1755143447725,-460.0,0.00018702,2]
[379107021,1755143447734,-460.0,0.00018702,2]
[379107022,1755143447743,-460.0,0.00018702,2]
[379107023,1755143447753,-503.38479789,0.00018702,2]
[379107024,1755143447763,-460.0,0.00018702,2]
[379107025,1755143447773,-460.0,0.00018702,2]
[379107026,1755143447782,-3631.6,0.00018702,2]
[379107027,1755143447793,-533.5,0.00018702,2]
[379107028,1755143447803,-151.0,0.00018702,2]
[379107029,1755143447812,-151.0,0.00018702,2]
[379107030,1755143447822,-461.31190261,0.00018702,2]
[379107031,1755143447832,-460.0,0.00018702,2]
[379107032,1755143447842,-460.0,0.00018702,2]
[379107033,1755143447852,-151.0,0.00018702,2]
[379107034,1755143447861,-151.0,0.00018702,2]
[379107035,1755143447871,-180.325488,0.00018702,2]
[379107036,1755143447881,-460.0,0.00018702,2]
[379107037,1755143447890,-460.0,0.00018702,2]
[379107038,1755143447900,-460.0,0.00018702,2]
[379107039,1755143447910,-460.0,0.00018702,2]
[379107040,1755143447920,-460.0,0.00018702,2]
[379107041,1755143447929,-460.0,0.00018702,2]
[379107042,1755143447939,-460.0,0.00018702,2]
[379107043,1755143447949,-460.0,0.00018702,2]
[379107044,1755143447959,-460.0,0.00018702,2]
[379107045,1755143447969,-461.19690133,0.00018702,2]
[379107046,1755143447979,-158.703473,0.00018703,2]
[379107047,1755143447989,-158.703479,0.00018703,2]
[379107048,1755143447999,-153.3004,0.00018703,2]
[379107049,1755143448010,-151.0,0.00018703,2]
[379107050,1755143448020,-280.205065,0.00018703,2]
[379107051,1755143448030,-460.0,0.00018703,2]
[379107052,1755143448042,-151.0,0.00018703,2]
[379107053,1755143448052,-460.0,0.00018703,2]
[379107054,1755143448062,-151.0,0.00018703,2]
[379107055,1755143448072,-151.0,0.00018703,2]
[379107056,1755143448082,-460.0,0.00018703,2]
[379107057,1755143448092,-151.0,0.00018703,2]
[379107058,1755143448102,-151.0,0.00018703,2]
[379107059,1755143448114,-741.58,0.00018703,2]
[379107060,1755143448125,-460.0,0.00018703,2]
[379107061,1755143448136,-460.0,0.00018703,2]
[379107062,1755143448146,-460.0,0.00018703,2]
[379107063,1755143448155,-796.01,0.00018703,2]
[379107064,1755143448166,-460.0,0.00018703,2]
[379107065,1755143448176,-460.0,0.00018703,2]
[379107066,1755143448186,-460.0,0.00018703,2]
[379107067,1755143448197,-460.0,0.00018703,2]
[379107068,1755143448207,-460.0,0.00018703,2]
[379107069,1755143448217,-460.0,0.00018703,2]
[379107070,1755143448227,-816.53,0.00018703,2]
[379107071,1755143448237,-460.0,0.00018703,2]
[379107072,1755143448247,-461.95065278,0.00018703,2]
[379107073,1755143448257,-460.0,0.00018703,2]
[379107074,1755143448267,-508.64,0.00018703,2]
[379107075,1755143448277,-686.9,0.00018703,2]
[379107076,1755143448287,-467.376732,0.00018703,2]
[379107077,1755143448297,-467.376732,0.00018703,2]
[379107078,1755143448307,-467.376732,0.00018703,2]
[379107079,1755143448317,-510.21,0.00018703,2]
[379107080,1755143448327,-467.376732,0.00018703,2]
[379107081,1755143448481,-460.0,0.00018703,2]
[379107082,1755143448491,-460.0,0.00018703,2]
[379107083,1755143448502,-1903.76,0.00018703,2]
[379107084,1755143448511,-460.0,0.00018703,2]
[379107085,1755143448521,-463.24873396,0.00018703,2]
[379107086,1755143448530,-460.0,0.00018703,2]
[379107087,1755143448540,-460.0,0.00018703,2]
[379107088,1755143448549,-460.0,0.00018703,2]
[379107089,1755143448558,-441.16628443,0.00018703,2]
[379107090,1755143448567,-460.0,0.00018703,2]
[379107091,1755143448577,-460.0,0.00018703,2]
[379107092,1755143448587,-460.0,0.00018703,2]
[379107093,1755143448596,-460.0,0.00018703,2]
[379107094,1755143448606,-460.0,0.00018703,2]
[379107095,1755143448616,-151.0,0.00018703,2]
[379107096,1755143448625,-460.0,0.00018703,2]
[379107097,1755143448634,-151.0,0.00018703,2]
[379107098,1755143448644,-460.0,0.00018703,2]
[379107099,1755143448653,-460.0,0.00018703,2]
[379107100,1755143448663,-587.83,0.00018703,2]
[379107101,1755143448675,-460.0,0.00018704,2]
[379107102,1755143448684,-345.62166821,0.00018704,2]
[379107103,1755143448694,-460.0,0.00018704,2]
[379107104,1755143448703,-460.0,0.00018704,2]
[379107105,1755143448713,-460.0,0.00018704,2]
[379107106,1755143448724,-462.17084166,0.00018704,2]
[379107107,1755143448733,-460.0,0.00018704,2]
[379107108,1755143448742,-545.55,0.00018704,2]
[379107109,1755143448752,-466.1882192,0.00018704,2]
[379107110,1755143448762,-462.91329562,0.00018704,2]
[379107111,1755143448771,-540.30738997,0.00018704,2]
[379107112,1755143448781,-460.0,0.00018704,2]
[379107113,1755143448790,-613.18,0.00018704,2]
[379107114,1755143448799,-151.0,0.00018704,2]
[379107115,1755143448809,-460.0,0.00018704,2]
[379107116,1755143448819,-460.0,0.00018704,2]
[379107117,1755143448829,-460.0,0.00018704,2]
[379107118,1755143448838,-479.74,0.00018704,2]
[379107119,1755143448848,-460.0,0.00018704,2]
[379107120,1755143448857,-460.0,0.00018704,2]
[379107121,1755143448867,-460.0,0.00018704,2]
[379107122,1755143448876,-460.0,0.00018704,2]
[379107123,1755143448886,-460.0,0.00018704,2]
[379107124,1755143448895,-460.0,0.00018704,2]
[379107125,1755143448905,-460.0,0.00018704,2]
[379107126,1755143448915,-460.0,0.00018704,2]
[379107127,1755143448924,-960.18,0.00018704,2]
[379107128,1755143448934,-460.0,0.00018704,2]
[379107129,1755143448944,-460.0,0.00018704,2]
[379107130,1755143448953,-460.0,0.00018704,2]
[379107131,1755143448962,-157.890909,0.00018704,2]
[379107132,1755143448971,-460.0,0.00018704,2]
[379107133,1755143448980,-460.0,0.00018704,2]
[379107134,1755143448991,-460.0,0.00018704,2]
[379107135,1755143449000,-465.38648774,0.00018704,2]
[379107136,1755143449009,-460.0,0.00018704,2]
[379107137,1755143449019,-460.0,0.00018704,2]
[379107138,1755143449028,-460.0,0.00018704,2]
[379107139,1755143449037,-164.99888307,0.00018704,2]
[379107140,1755143449047,-460.0,0.00018704,2]
[379107141,1755143449057,-460.0,0.00018704,2]
[379107143,1755143449067,-460.0,0.00018704,2]
[379107145,1755143449076,-463.31801615,0.00018704,2]
[379107147,1755143449086,-513.28,0.00018704,2]
[379107148,1755143449095,-460.0,0.00018704,2]
[379107150,1755143449105,-151.0,0.00018704,2]
[379107152,1755143449114,-151.0,0.00018704,2]
[379107154,1755143449126,-460.0,0.00018704,2]
[379107156,1755143449136,-460.0,0.00018704,2]
[379107157,1755143449146,-460.0,0.00018704,2]
[379107158,1755143449156,-506.36170116,0.00018704,2]
[379107159,1755143449167,-460.0,0.00018704,2]
[379107160,1755143449187,-463.67194278,0.00018704,2]
[379107161,1755143449207,-460.0,0.00018704,2]
[379107162,1755143449217,-460.0,0.00018704,2]
[379107164,1755143449227,-460.0,0.00018704,2]
[379107166,1755143449237,-460.0,0.00018704,2]
[379107168,1755143449258,-516.61,0.00018704,2]
[379107170,1755143449275,-460.0,0.00018704,2]
[379107172,1755143449284,-958.83,0.00018704,2]
[379107174,1755143449294,-460.0,0.00018704,2]
[379107176,1755143449304,-460.0,0.00018704,2]
[379107178,1755143449314,-557.99,0.00018704,2]
[379107181,1755143449323,-460.0,0.00018704,2]
[379107183,1755143449334,-460.0,0.00018704,2]
[379107185,1755143449343,-460.0,0.00018704,2]
[379107186,1755143449352,-488.17525389,0.00018704,2]
[379107188,1755143449361,-618.54,0.00018704,2]
[379107190,1755143449371,-467.46366629,0.00018704,2]
[379107192,1755143449380,-467.376732,0.00018704,2]
[379107194,1755143449390,-467.376732,0.00018704,2]
[379107196,1755143449399,-460.0,0.00018704,2]
[379107197,1755143449408,-460.0,0.00018704,2]
[379107198,1755143449419,-1036.0,0.00018704,2]
[379107199,1755143449428,-460.0,0.00018704,2]
[379107200,1755143449437,-460.0,0.00018704,2]
[379107201,1755143449447,-463.91606532,0.00018704,2]
[379107202,1755143449457,-460.0,0.00018704,2]
[379107203,1755143449466,-460.0,0.00018704,2]
[379107204,1755143449475,-461.1873252,0.00018704,2]
[379107205,1755143449485,-460.0,0.00018704,2]
[379107206,1755143449508,-460.0,0.00018704,2]
[379107207,1755143449518,-460.0,0.00018704,2]
[379107208,1755143449527,-153.575306,0.00018705,2]
[379107209,1755143449537,-153.575306,0.00018705,2]
[379107210,1755143449547,-461.22761691,0.00018705,2]
[379107211,1755143449557,-151.0,0.00018705,2]
[379107212,1755143449567,-199.083324,0.00018705,2]
[379107213,1755143449576,-151.0,0.00018705,2]
[379107214,1755143449586,-151.0,0.00018705,2]
[379107215,1755143449595,-151.0,0.00018705,2]
[379107216,1755143449605,-151.0,0.00018705,2]
[379107217,1755143449614,-501.15,0.00018705,2]
[379107218,1755143449624,-460.0,0.00018705,2]
[379107219,1755143449634,-646.336907,0.00018705,2]
[379107220,1755143449643,-460.0,0.00018705,2]
[379107221,1755143449653,-646.336907,0.00018705,2]
[379107222,1755143449663,-151.0,0.00018705,2]
[379107223,1755143449672,-151.0,0.00018706,2]
[379107224,1755143449682,-189.79684,0.00018706,2]
[379107225,1755143449693,-189.79684,0.00018706,2]
[379107226,1755143449702,-387.435564,0.00018706,2]
[379107227,1755143449713,-237.423141,0.00018707,2]
[379107228,1755143449722,-237.423141,0.00018707,2]
[379107229,1755143449732,-189.79684,0.00018707,2]
[379107230,1755143449742,-189.79684,0.00018707,2]
[379107231,1755143449751,-387.435564,0.00018707,2]
[379107232,1755143449761,-460.0,0.00018707,2]
[379107233,1755143449771,-153.575306,0.00018707,2]
[379107234,1755143449780,-153.575307,0.00018707,2]
[379107235,1755143449790,-151.0,0.00018707,2]
[379107236,1755143449799,-151.0,0.00018707,2]
[379107237,1755143449809,-151.0,0.00018707,2]
[379107238,1755143449818,-461.19694275,0.00018707,2]
[379107239,1755143449827,-151.0,0.00018707,2]
[379107240,1755143449837,-151.0,0.00018707,2]
[379107241,1755143449846,-151.0,0.00018707,2]
[379107242,1755143449856,-460.0,0.00018707,2]
[379107243,1755143449865,-460.0,0.00018707,2]
[379107244,1755143449874,-460.0,0.00018707,2]
[379107245,1755143449884,-460.0,0.00018707,2]
[379107246,1755143449893,-151.487116,0.00018707,2]
[379107247,1755143449902,-460.0,0.00018707,2]
[379107248,1755143449912,-151.0,0.00018707,2]
[379107249,1755143449921,-169.276992,0.00018707,2]
[379107250,1755143449931,-151.0,0.00018707,2]
[379107251,1755143449941,-151.0,0.00018707,2]
[379107252,1755143449950,-646.336907,0.00018707,2]
[379107253,1755143449960,-646.336907,0.00018707,2]
[379107254,1755143449969,-467.376732,0.00018707,2]
[379107255,1755143449979,-467.376732,0.00018707,2]
[379107256,1755143449989,-151.0,0.00018708,2]
[379107257,1755143449999,-1106.205175,0.00018708,2]
[379107258,1755143450009,-1106.205175,0.00018708,2]
[379107259,1755143450018,-151.0,0.00018709,2]
[379107260,1755143450028,-237.423141,0.00018709,2]
[379107261,1755143450037,-237.423141,0.00018709,2]
[379107262,1755143450046,-189.79684,0.00018709,2]
[379107263,1755143450055,-189.79684,0.00018709,2]
[379107264,1755143450065,-387.435564,0.00018709,2]
[379107265,1755143450074,-151.0,0.00018709,2]
[379107266,1755143450084,-151.0,0.0001871,2]
[379107267,1755143450093,-151.0,0.0001871,2]
[379107268,1755143450103,-151.0,0.0001871,2]
[379107269,1755143450112,-237.423141,0.0001871,2]
[379107270,1755143450124,-237.423141,0.0001871,2]
[379107271,1755143450134,-1106.205175,0.0001871,2]
[379107272,1755143450143,-1106.205175,0.0001871,2]
[379107273,1755143450152,-151.0,0.0001871,2]
[379107274,1755143450162,-151.0,0.0001871,2]